fUSD/lending_fUSD_20260620
["ID","MTS","AMOUNT","RATE_DAILY","PERIOD"]
[425831199,1781955041000,-152.0,0.00020876,2]
[425831226,1781955041000,-500.0,0.00020876,2]
[425831195,1781955041000,-152.0,0.00020876,2]
[425831176,1781955041000,-157.0,0.0002,2]
[425831201,1781955041000,-500.0,0.00020876,2]
[425831174,1781955041000,-166.66,0.00019919,2]
[425831175,1781955041000,-157.0,0.0002,2]
[425831178,1781955041000,-574.0,0.0002,2]
[425831231,1781955041000,-151.0,0.00020876,2]
[425831177,1781955041000,-273.0,0.0002,2]
[425831179,1781955041000,-504.0,0.0002,2]
[425831180,1781955041000,-9178.93,0.0002,2]
[425831189,1781955041000,-578.20924308,0.00020876,2]
[425831192,1781955041000,-152.0,0.00020876,2]
[425831186,1781955041000,-166.66,0.00020577,2]
[425831188,1781955041000,-202.94,0.0002084,2]
[425831182,1781955041000,-154.26,0.00020118,2]
[425831197,1781955041000,-151.0,0.00020876,2]
[425831181,1781955041000,-151.0,0.0002,2]
[425831183,1781955041000,-3656.88393498,0.00020281,2]
[425831184,1781955041000,-230.2,0.00020381,2]
[425831191,1781955041000,-151.0,0.00020876,2]
[425831185,1781955041000,-315.292015,0.00020436,7]
[425831190,1781955041000,-152.0,0.00020876,2]
[425831196,1781955041000,-500.0,0.00020876,2]
[425831202,1781955041000,-152.0,0.00020876,2]
[425831193,1781955041000,-151.0,0.00020876,2]
[425831203,1781955041000,-500.0,0.00020876,2]
[425831198,1781955041000,-151.0,0.00020876,2]
[425831200,1781955041000,-500.0,0.00020876,2]
[425831194,1781955041000,-721.12765534,0.00020876,2]
[425831187,1781955041000,-154.26,0.00020788,2]
[425831235,1781955041000,-500.0,0.00020876,2]
[425831227,1781955041000,-500.0,0.00020876,2]
[425831233,1781955041000,-500.0,0.00020876,2]
[425831268,1781955041000,-574.0,0.00022,2]
[425831271,1781955041000,-154.26,0.00022129,2]
[425831269,1781955041000,-151.0,0.00022,2]
[425831273,1781955041000,-230.2,0.00022353,2]
[425831275,1781955041000,-1268.94,0.00022466,2]
[425831272,1781955041000,-504.0,0.00022143,4]
[425831274,1781955041000,-342.53,0.00022466,2]
[425831265,1781955041000,-151.0,0.00022,2]
[425831270,1781955041000,-2741.71,0.00022,2]
[425831266,1781955041000,-157.0,0.00022,2]
[425831267,1781955041000,-273.0,0.00022,2]
[425831264,1781955041000,-716.0,0.00021918,8]
[425831276,1781955041000,-622.13,0.00022483,2]
[425831284,1781955041000,-151.0,0.00023,2]
[425831279,1781955041000,-500.0,0.00022724,2]
[425831283,1781955041000,-15775.10815762,0.00022951,2]
[425831286,1781955041000,-273.0,0.00023,2]
[425831280,1781955041000,-502.70111222,0.00022724,2]
[425831278,1781955041000,-166.66,0.00022549,2]
[425831285,1781955041000,-157.0,0.00023,2]
[425831281,1781955041000,-183.455526,0.00022773,14]
[425831282,1781955041000,-176.399545,0.00022844,14]
[425831277,1781955041000,-150.0,0.0002254,2]
[425831287,1781955041000,-574.0,0.00023,2]
[425831289,1781955041000,-176.399544,0.00023143,120]
[425831290,1781955041000,-202.94,0.00023156,2]
[425831232,1781955041000,-500.0,0.00020876,2]
[425831258,1781955041000,-245.49673122,0.00021706,2]
[425831259,1781955041000,-275.28,0.00021707,2]
[425831288,1781955041000,-151.0,0.00023,2]
[425831261,1781955041000,-166.66,0.00021892,2]
[425831256,1781955041000,-500.0,0.00021618,2]
[425831228,1781955041000,-151.0,0.00020876,2]
[425831229,1781955041000,-500.0,0.00020876,2]
[425831238,1781955041000,-157.0,0.00021,2]
[425831236,1781955041000,-151.0,0.00020931,2]
[425831250,1781955041000,-151.0,0.00021316,2]
[425831240,1781955041000,-273.0,0.00021,2]
[425831242,1781955041000,-151.0,0.00021,2]
[425831241,1781955041000,-574.0,0.00021,2]
[425831239,1781955041000,-160.80927344,0.00021,2]
[425831245,1781955041000,-151.0,0.00021096,2]
[425831249,1781955041000,-151.0,0.00021261,2]
[425831246,1781955041000,-151.0,0.00021151,2]
[425831230,1781955041000,-500.0,0.00020876,2]
[425831247,1781955041000,-151.0,0.00021206,2]
[425831244,1781955041000,-504.0,0.00021071,3]
[425831262,1781955041000,-1010.04,0.00021918,2]
[425831257,1781955041000,-4708.99,0.00021619,2]
[425831254,1781955041000,-151.0,0.00021426,2]
[425831260,1781955041000,-3656.88393494,0.00021796,2]
[425831263,1781955041000,-5000.0,0.00021918,2]
[425831255,1781955041000,-154.26,0.00021459,2]
[425831251,1781955041000,-6499.59,0.0002137,2]
[425831253,1781955041000,-15775.10815762,0.00021385,2]
[425831248,1781955041000,-166.66,0.00021234,2]
[425831243,1781955041000,-151.0,0.00021041,2]
[425831252,1781955041000,-151.0,0.00021371,2]
[425831330,1781955042000,-504.0,0.00026429,8]
[425831327,1781955042000,-621.78829552,0.00026354,2]
[425831331,1781955042000,-298.579353,0.00026465,2]
[425831334,1781955042000,-181.0,0.00026829,7]
[425831319,1781955042000,-164.14,0.00025,2]
[425831325,1781955042000,-230.2,0.00026296,2]
[425831333,1781955042000,-292.837444,0.00026466,2]
[425831324,1781955042000,-4227.0,0.00026254,5]
[425831314,1781955042000,-150.0,0.0002485,2]
[425831321,1781955042000,-202.94,0.00025472,120]
[425831326,1781955042000,-3656.88393494,0.00026339,2]
[425831335,1781955042000,-1276.0,0.0002695,2]
[425831347,1781955042000,-500.0,0.000275,7]
[425831329,1781955042000,-482.4,0.00026356,2]
[425831332,1781955042000,-150.0,0.00026465,5]
[425831337,1781955042000,-1360.0,0.0002695,2]
[425831336,1781955042000,-383.0,0.0002695,2]
[425831340,1781955042000,-253.04866439,0.00027397,2]
[425831338,1781955042000,-1229.0,0.0002695,2]
[425831342,1781955042000,-373.64128214,0.00027397,2]
[425831345,1781955042000,-150.0,0.00027398,2]
[425831343,1781955042000,-163.83,0.00027397,2]
[425831346,1781955042000,-580.59,0.000274,30]
[425831344,1781955042000,-14733.72,0.00027397,10]
[425831320,1781955042000,-504.0,0.00025357,7]
[425831341,1781955042000,-1500.0,0.00027397,2]
[425831328,1781955042000,-775.4783256,0.00026354,2]
[425831318,1781955042000,-576.0,0.00025,2]
[425831304,1781955042000,-161.0,0.00024,2]
[425831312,1781955042000,-181.01,0.00024658,2]
[425831350,1781955042000,-155.08,0.0002755,30]
[425831291,1781955042000,-166.66,0.00023207,2]
[425831292,1781955042000,-504.0,0.00023214,5]
[425831294,1781955042000,-1787.92207337,0.00023239,10]
[425831293,1781955042000,-1710.55,0.00023238,7]
[425831296,1781955042000,-599.60298507,0.00023615,2]
[425831297,1781955042000,-747.80937859,0.00023615,2]
[425831295,1781955042000,-3656.88393494,0.0002331,2]
[425831298,1781955042000,-150.0,0.00023667,2]
[425831299,1781955042000,-275.28,0.00023877,2]
[425831303,1781955042000,-574.0,0.00024,2]
[425831302,1781955042000,-273.0,0.00024,2]
[425831313,1781955042000,-3656.88393494,0.00024825,2]
[425831310,1781955042000,-163.83,0.00024658,2]
[425831301,1781955042000,-157.0,0.00024,2]
[425831305,1781955042000,-504.0,0.00024286,6]
[425831308,1781955042000,-805.08,0.00024635,7]
[425831307,1781955042000,-15775.10815762,0.00024517,2]
[425831306,1781955042000,-230.2,0.00024324,2]
[425831309,1781955042000,-1000.0,0.00024658,2]
[425831316,1781955042000,-170.0,0.00025,2]
[425831323,1781955042000,-150.0,0.00026093,2]
[425831317,1781955042000,-273.0,0.00025,2]
[425831322,1781955042000,-275.28,0.00026048,2]
[425831311,1781955042000,-181.0,0.00024658,2]
[425831315,1781955042000,-209.27162967,0.00024999,2]
[425831300,1781955042000,-168.0,0.00024,2]
[425831351,1781955042000,-156.49,0.0002755,30]
[425831339,1781955042000,-150.0,0.00027,2]
[425831349,1781955042000,-150.0,0.00027524,5]
[425831398,1781955042000,-156.74,0.00028516,30]
[425831387,1781955042000,-310.0,0.000284,2]
[425831399,1781955042000,-166.15,0.00028516,2]
[425831391,1781955042000,-500.0,0.00028493,2]
[425831390,1781955042000,-155.08,0.0002842,30]
[425831393,1781955042000,-500.0,0.00028493,2]
[425831396,1781955042000,-156.49,0.00028516,30]
[425831395,1781955042000,-150.0,0.00028493,2]
[425831397,1781955042000,-164.4,0.00028516,2]
[425831389,1781955042000,-200.13817817,0.0002842,2]
[425831392,1781955042000,-500.0,0.00028493,2]
[425831394,1781955042000,-317.01670869,0.00028493,2]
[425831388,1781955042000,-316.0,0.000284,2]
[425831412,1781955042000,-156.0,0.00028904,30]
[425831404,1781955042000,-150.0,0.00028767,2]
[425831410,1781955042000,-273.0,0.00028904,30]
[425831402,1781955042000,-252.58794391,0.00028761,14]
[425831407,1781955042000,-157.0,0.00028904,30]
[425831400,1781955042000,-504.0,0.00028571,10]
[425831409,1781955042000,-157.0,0.00028904,30]
[425831408,1781955042000,-151.0,0.00028904,30]
[425831406,1781955042000,-193.0,0.00028847,5]
[425831403,1781955042000,-373.64128214,0.00028766,2]
[425831405,1781955042000,-396.28,0.00028818,2]
[425831414,1781955042000,-163.0,0.00028904,30]
[425831348,1781955042000,-504.0,0.000275,9]
[425831411,1781955042000,-574.0,0.00028904,30]
[425831384,1781955042000,-369.19555262,0.000283,2]
[425831401,1781955042000,-155.08,0.0002871,7]
[425831380,1781955042000,-230.2,0.00028267,2]
[425831381,1781955042000,-5290.0,0.00028298,5]
[425831354,1781955042000,-156.74,0.0002755,30]
[425831356,1781955042000,-181.01,0.0002755,2]
[425831355,1781955042000,-166.15,0.0002755,30]
[425831359,1781955042000,-573.59,0.00027721,2]
[425831358,1781955042000,-156.74,0.00027711,7]
[425831357,1781955042000,-156.49,0.00027711,7]
[425831413,1781955042000,-153.0,0.00028904,30]
[425831352,1781955042000,-181.0,0.0002755,2]
[425831361,1781955042000,-155.08,0.0002784,7]
[425831364,1781955042000,-156.49,0.00027872,2]
[425831368,1781955042000,-201.6445164,0.00028,7]
[425831366,1781955042000,-156.74,0.00027872,2]
[425831353,1781955042000,-164.4,0.0002755,30]
[425831360,1781955042000,-202.94,0.00027787,120]
[425831370,1781955042000,-156.49,0.00028033,30]
[425831383,1781955042000,-369.19555262,0.000283,2]
[425831386,1781955042000,-156.74,0.00028355,2]
[425831377,1781955042000,-181.02,0.0002813,7]
[425831374,1781955042000,-156.74,0.00028033,30]
[425831378,1781955042000,-156.49,0.00028194,7]
[425831375,1781955042000,-166.15,0.00028033,7]
[425831373,1781955042000,-164.4,0.00028033,7]
[425831362,1781955042000,-3656.88393494,0.00027854,2]
[425831376,1781955042000,-155.08,0.0002813,2]
[425831382,1781955042000,-369.19555262,0.000283,2]
[425831379,1781955042000,-156.74,0.00028194,7]
[425831385,1781955042000,-156.49,0.00028355,2]
[425831450,1781955043000,-150.0,0.00030137,120]
[425831446,1781955043000,-373.64128214,0.00030135,2]
[425831441,1781955043000,-1229.0,0.0002995,2]
[425831443,1781955043000,-50000.0,0.0003,3]
[425831447,1781955043000,-163.83,0.00030137,2]
[425831459,1781955043000,-213.56,0.00030685,2]
[425831449,1781955043000,-1153.09,0.00030137,2]
[425831453,1781955043000,-966.0,0.00030334,30]
[425831451,1781955043000,-150.0,0.00030206,2]
[425831442,1781955043000,-500.0,0.00029999,30]
[425831445,1781955043000,-135759.62293697,0.0003,2]
[425831458,1781955043000,-651.94267008,0.00030484,2]
[425831454,1781955043000,-291.10532732,0.00030369,7]
[425831455,1781955043000,-651.94267008,0.00030386,2]
[425831457,1781955043000,-784.40696514,0.00030411,2]
[425831456,1781955043000,-651.94267008,0.00030405,2]
[425831462,1781955043000,-651.94267008,0.00030701,2]
[425831461,1781955043000,-162.32194955,0.00030685,30]
[425831465,1781955043000,-651.94267008,0.00030887,2]
[425831463,1781955043000,-504.0,0.00030714,12]
[425831464,1781955043000,-3656.88393494,0.00030883,2]
[425831438,1781955043000,-151.0,0.00029904,30]
[425831466,1781955043000,-157.0,0.00030904,30]
[425831452,1781955043000,-230.2,0.00030239,2]
[425831444,1781955043000,-50000.0,0.0003,2]
[425831429,1781955043000,-150.0,0.00029863,2]
[425831440,1781955043000,-383.0,0.0002995,2]
[425831469,1781955043000,-273.0,0.00030904,30]
[425831415,1781955043000,-151.0,0.00028904,30]
[425831424,1781955043000,-3656.88393494,0.00029368,2]
[425831417,1781955043000,-1161.0,0.00029,2]
[425831416,1781955043000,-1034.0,0.00028914,30]
[425831421,1781955043000,-644.79446245,0.00029093,2]
[425831420,1781955043000,-155.09,0.00029,2]
[425831419,1781955043000,-2500.0,0.00029,2]
[425831422,1781955043000,-804.17102365,0.00029093,2]
[425831423,1781955043000,-341.7579,0.00029261,14]
[425831418,1781955043000,-541.24282986,0.00029,2]
[425831439,1781955043000,-1276.0,0.0002995,2]
[425831425,1781955043000,-213.56,0.00029589,2]
[425831434,1781955043000,-273.0,0.00029904,30]
[425831426,1781955043000,-504.0,0.00029643,11]
[425831431,1781955043000,-157.0,0.00029904,30]
[425831433,1781955043000,-157.0,0.00029904,30]
[425831430,1781955043000,-400.0,0.000299,10]
[425831428,1781955043000,-784.40696514,0.00029795,2]
[425831436,1781955043000,-156.0,0.00029904,30]
[425831435,1781955043000,-574.0,0.00029904,30]
[425831432,1781955043000,-151.0,0.00029904,30]
[425831437,1781955043000,-153.0,0.00029904,30]
[425831448,1781955043000,-305.55928222,0.00030137,2]
[425831427,1781955043000,-974.6910821,0.00029666,2]
[425831471,1781955043000,-153.0,0.00030904,30]
[425831460,1781955043000,-757.67805044,0.00030685,30]
[425831468,1781955043000,-157.0,0.00030904,30]
[425831500,1781955043000,-300.0,0.000315,10]
[425831501,1781955043000,-373.64128214,0.00031504,2]
[425831502,1781955043000,-150.0,0.00031507,120]
[425831506,1781955043000,-651.94267008,0.00031609,2]
[425831507,1781955043000,-651.94267008,0.00031615,2]
[425831503,1781955043000,-18713.13859123,0.00031525,2]
[425831510,1781955043000,-651.94267008,0.00031654,2]
[425831505,1781955043000,-245.0,0.00031559,2]
[425831511,1781955043000,-202.379999,0.000317,12]
[425831508,1781955043000,-309.0,0.00031618,2]
[425831509,1781955043000,-784.40696514,0.00031644,2]
[425831499,1781955043000,-155.0,0.00031439,2]
[425831512,1781955043000,-150.0,0.00031716,2]
[425831516,1781955043000,-651.94267008,0.00031781,2]
[425831520,1781955043000,-162.84265132,0.00031845,2]
[425831518,1781955043000,-668.65185756,0.00031832,2]
[425831521,1781955043000,-784.40696514,0.00031849,2]
[425831522,1781955043000,-800.0,0.000319,11]
[425831515,1781955043000,-651.94267008,0.00031757,2]
[425831519,1781955043000,-833.92535152,0.00031832,2]
[425831514,1781955043000,-235.87891074,0.00031756,30]
[425831517,1781955043000,-504.0,0.00031786,13]
[425831523,1781955043000,-757.67805044,0.00031903,30]
[425831467,1781955043000,-151.0,0.00030904,30]
[425831513,1781955043000,-150.317321,0.00031732,52]
[425831495,1781955043000,-522.0,0.00031394,2]
[425831504,1781955043000,-422.0,0.00031532,2]
[425831492,1781955043000,-847.9769,0.0003135,2]
[425831470,1781955043000,-574.0,0.00030904,30]
[425831472,1781955043000,-151.0,0.00030904,30]
[425831477,1781955043000,-4599.8276893,0.00031,2]
[425831473,1781955043000,-513.498816,0.0003096,120]
[425831474,1781955043000,-651.94267008,0.00030988,2]
[425831476,1781955043000,-50000.0,0.00031,2]
[425831497,1781955043000,-200.0,0.000314,10]
[425831478,1781955043000,-279.26751959,0.00031,2]
[425831483,1781955043000,-1000.0,0.000312,7]
[425831487,1781955043000,-280.0,0.00031294,30]
[425831482,1781955043000,-5166.72920552,0.00031198,2]
[425831480,1781955043000,-500.0,0.00031036,60]
[425831486,1781955043000,-231.0,0.00031268,2]
[425831475,1781955043000,-50000.0,0.00031,3]
[425831481,1781955043000,-4089.9111677,0.00031194,2]
[425831485,1781955043000,-784.40696514,0.00031233,2]
[425831494,1781955043000,-235.0,0.00031373,2]
[425831490,1781955043000,-1694.0,0.00031323,10]
[425831496,1781955043000,-448.25522785,0.000314,2]
[425831498,1781955043000,-784.40696514,0.00031438,2]
[425831493,1781955043000,-150.0,0.0003137,2]
[425831479,1781955043000,-784.40696514,0.00031027,2]
[425831488,1781955043000,-757.67805044,0.00031294,30]
[425831484,1781955043000,-150.0,0.00031233,2]
[425831489,1781955043000,-386.0,0.00031301,2]
[425831491,1781955043000,-500.0,0.00031349,30]
[425831525,1781955044000,-151.0,0.00031904,30]
[425831524,1781955044000,-157.0,0.00031904,30]
[425831529,1781955044000,-153.0,0.00031904,30]
[425831530,1781955044000,-151.0,0.00031904,30]
[425831533,1781955044000,-200.0,0.00031993,2]
[425831527,1781955044000,-273.0,0.00031904,30]
[425831534,1781955044000,-732.75451991,0.00032,3]
[425831526,1781955044000,-157.0,0.00031904,30]
[425831531,1781955044000,-1001.0,0.00031945,120]
[425831532,1781955044000,-858.17707971,0.00031975,2]
[425831528,1781955044000,-574.0,0.00031904,30]
[425831540,1781955046000,-398.3597503,0.00026083,2]
[425831539,1781955046000,-13079.07681856,0.00026083,2]
[425831538,1781955046000,-181.02,0.00024658,2]
[425831541,1781955046000,-1631.12723882,0.00026083,2]
[425831546,1781955046000,-382.7,0.00027397,10]
[425831542,1781955046000,-666.54434994,0.00026083,2]
[425831544,1781955046000,-1913.36984942,0.00027397,10]
[425831545,1781955046000,-515.0,0.00027397,10]
[425831543,1781955046000,-181.02,0.00026829,7]
[425831549,1781955049000,-343.44054262,0.00027397,10]
[425831551,1781955050000,-5146.12729985,0.00027397,10]
[425831550,1781955050000,-273.38837613,0.00027397,10]
[425831552,1781955050000,-413.08974857,0.00027397,10]
[425831553,1781955050000,-745.8496623,0.00027397,10]
[425831558,1781955050000,-163.17,0.0002755,30]
[425831557,1781955050000,-157.59,0.0002755,30]
[425831556,1781955050000,-181.01,0.0002755,2]
[425831554,1781955050000,-2545.13452111,0.00027397,10]
[425831559,1781955050000,-2614.46423098,0.00027648,2]
[425831555,1781955050000,-155.08,0.0002755,30]
[425831568,1781955326000,153.0,0.00023,120]
[425831569,1781955448000,291.0,0.00023,120]
[425831570,1781955550000,153.0,0.00023,120]
[425831572,1781956232000,-795.89327611,0.00016206,2]
[425831571,1781956232000,-209.47069709,0.00016205,2]
[425831573,1781956232000,-556.02436834,0.00016206,2]
[425831574,1781956232000,-268.95559825,0.00016206,2]
[425831577,1781956238000,-1520.64245995,0.00016206,2]
[425831576,1781956238000,-500.0,0.00016206,2]
[425831672,1781956242000,-316.0,0.00016337,2]
[425831675,1781956242000,-151.0,0.00016337,2]
[425831676,1781956242000,-310.0,0.00016337,2]
[425831678,1781956242000,-150.0,0.00016337,2]
[425831679,1781956242000,-316.0,0.00016337,2]
[425831680,1781956242000,-309.0,0.00016337,2]
[425831681,1781956242000,-151.0,0.00016337,2]
[425831684,1781956242000,-152.0,0.00016337,2]
[425831682,1781956242000,-320.0,0.00016337,2]
[425831685,1781956242000,-152.0,0.00016337,2]
[425831686,1781956242000,-151.0,0.00016337,2]
[425831687,1781956242000,-151.0,0.00016337,2]
[425831690,1781956242000,-150.0,0.00016337,2]
[425831689,1781956242000,-150.0,0.00016337,2]
[425831688,1781956242000,-151.0,0.00016337,2]
[425831683,1781956242000,-276.90692131,0.00016337,2]
[425831670,1781956242000,-321.0,0.00016337,2]
[425831661,1781956242000,-151.0,0.00016337,2]
[425831671,1781956242000,-150.0,0.00016337,2]
[425831658,1781956242000,-152.0,0.00016206,2]
[425831660,1781956242000,-319.0,0.00016337,2]
[425831665,1781956242000,-314.0,0.00016337,2]
[425831659,1781956242000,-152.0,0.00016337,2]
[425831662,1781956242000,-312.0,0.00016337,2]
[425831657,1781956242000,-1544.64273304,0.00016206,2]
[425831663,1781956242000,-312.0,0.00016337,2]
[425831664,1781956242000,-152.0,0.00016337,2]
[425831666,1781956242000,-312.0,0.00016337,2]
[425831691,1781956242000,-152.0,0.00016337,2]
[425831667,1781956242000,-319.0,0.00016337,2]
[425831669,1781956242000,-320.0,0.00016337,2]
[425831668,1781956242000,-153.0,0.00016337,2]
[425831673,1781956242000,-317.0,0.00016337,2]
[425831674,1781956242000,-309.0,0.00016337,2]
[425831677,1781956242000,-311.0,0.00016337,2]
[425831693,1781956242000,-152.0,0.00016337,2]
[425831725,1781956242000,-500.0,0.00016438,2]
[425831694,1781956242000,-151.0,0.00016337,2]
[425831722,1781956242000,-500.0,0.00016438,2]
[425831718,1781956242000,-500.0,0.00016438,2]
[425831727,1781956242000,-500.0,0.00016438,2]
[425831717,1781956242000,-500.0,0.00016438,2]
[425831723,1781956242000,-500.0,0.00016438,2]
[425831715,1781956242000,-175.25,0.00016438,2]
[425831719,1781956242000,-500.0,0.00016438,2]
[425831724,1781956242000,-500.0,0.00016438,2]
[425831720,1781956242000,-500.0,0.00016438,2]
[425831729,1781956242000,-500.0,0.00016438,2]
[425831730,1781956242000,-500.0,0.00016438,2]
[425831731,1781956242000,-500.0,0.00016438,2]
[425831735,1781956242000,-500.0,0.00016438,2]
[425831733,1781956242000,-500.0,0.00016438,2]
[425831736,1781956242000,-500.0,0.00016438,2]
[425831721,1781956242000,-500.0,0.00016438,2]
[425831714,1781956242000,-263.3,0.00016438,2]
[425831698,1781956242000,-151.0,0.00016337,2]
[425831710,1781956242000,-310.0,0.00016348,2]
[425831711,1781956242000,-317.0,0.00016348,2]
[425831692,1781956242000,-151.0,0.00016337,2]
[425831696,1781956242000,-152.0,0.00016337,2]
[425831700,1781956242000,-500.0,0.00016337,2]
[425831695,1781956242000,-152.0,0.00016337,2]
[425831697,1781956242000,-152.0,0.00016337,2]
[425831702,1781956242000,-526.11229447,0.00016337,2]
[425831701,1781956242000,-502.70111222,0.00016337,2]
[425831699,1781956242000,-209.0,0.00016337,2]
[425831706,1781956242000,-310.0,0.00016337,2]
[425831703,1781956242000,-500.0,0.00016337,2]
[425831705,1781956242000,-500.0,0.00016337,2]
[425831708,1781956242000,-311.0,0.00016337,2]
[425831707,1781956242000,-309.0,0.00016337,2]
[425831712,1781956242000,-150.0,0.00016367,2]
[425831704,1781956242000,-500.0,0.00016337,2]
[425831709,1781956242000,-317.0,0.00016339,2]
[425831787,1781956243000,-150.0,0.00017177,2]
[425831780,1781956243000,-300.0,0.00016531,2]
[425831779,1781956243000,-150.0,0.00016529,2]
[425831778,1781956243000,-500.0,0.00016438,2]
[425831776,1781956243000,-500.0,0.00016438,2]
[425831777,1781956243000,-500.0,0.00016438,2]
[425831770,1781956243000,-500.0,0.00016438,2]
[425831774,1781956243000,-500.0,0.00016438,2]
[425831786,1781956243000,-150.0,0.00017015,2]
[425831781,1781956243000,-150.0,0.00016691,2]
[425831785,1781956243000,-341.7579,0.000169,2]
[425831791,1781956243000,-488.7364591,0.00017971,2]
[425831783,1781956243000,-150.0,0.00016853,2]
[425831784,1781956243000,-252.58794391,0.000169,2]
[425831790,1781956243000,-300.0,0.00017827,2]
[425831794,1781956243000,-1555.5,0.00018284,2]
[425831797,1781956243000,-1613.0535,0.00018832,2]
[425831796,1781956243000,-263.3,0.0001841,2]
[425831795,1781956243000,-216.0,0.000184,2]
[425831772,1781956243000,-500.0,0.00016438,2]
[425831798,1781956243000,-1520.65,0.00019339,2]
[425831799,1781956243000,-9999.99,0.00019339,2]
[425831792,1781956243000,-300.0,0.00017971,2]
[425831800,1781956243000,-7086.94,0.00019339,2]
[425831782,1781956243000,-588.15999858,0.00016767,2]
[425831768,1781956243000,-598.94118761,0.00016438,2]
[425831763,1781956243000,-500.0,0.00016438,2]
[425831771,1781956243000,-500.0,0.00016438,2]
[425831739,1781956243000,-500.0,0.00016438,2]
[425831737,1781956243000,-500.0,0.00016438,2]
[425831740,1781956243000,-500.0,0.00016438,2]
[425831741,1781956243000,-500.0,0.00016438,2]
[425831742,1781956243000,-500.0,0.00016438,2]
[425831738,1781956243000,-500.0,0.00016438,2]
[425831744,1781956243000,-500.0,0.00016438,2]
[425831743,1781956243000,-500.0,0.00016438,2]
[425831745,1781956243000,-500.0,0.00016438,2]
[425831754,1781956243000,-500.0,0.00016438,2]
[425831756,1781956243000,-500.0,0.00016438,2]
[425831760,1781956243000,-500.0,0.00016438,2]
[425831762,1781956243000,-500.0,0.00016438,2]
[425831758,1781956243000,-500.0,0.00016438,2]
[425831746,1781956243000,-500.0,0.00016438,2]
[425831748,1781956243000,-500.0,0.00016438,2]
[425831747,1781956243000,-500.0,0.00016438,2]
[425831749,1781956243000,-500.0,0.00016438,2]
[425831752,1781956243000,-500.0,0.00016438,2]
[425831793,1781956243000,-5186.15843563,0.00018161,2]
[425831769,1781956243000,-500.0,0.00016438,2]
[425831775,1781956243000,-500.0,0.00016438,2]
[425831764,1781956243000,-500.0,0.00016438,2]
[425831765,1781956243000,-500.0,0.00016438,2]
[425831766,1781956243000,-500.0,0.00016438,2]
[425831767,1781956243000,-500.0,0.00016438,2]
[425831801,1781956243000,-2124.59,0.00019339,2]
[425831788,1781956243000,-254.0,0.00017339,2]
[425831812,1781956243000,-504.0,0.0002,2]
[425831832,1781956243000,-309.58107794,0.00021039,2]
[425831836,1781956243000,-508.87990619,0.00021369,2]
[425831837,1781956243000,-500.0,0.00021369,2]
[425831835,1781956243000,-500.0,0.00021369,2]
[425831841,1781956243000,-500.0,0.00021369,2]
[425831834,1781956243000,-500.0,0.00021369,2]
[425831842,1781956243000,-10227.7268,0.00021519,2]
[425831838,1781956243000,-213.8453188,0.00021369,2]
[425831843,1781956243000,-182.573527,0.0002156,2]